Cogmind - Beta 10.2 @@@ ROGUE MODE // 2020.12.02 @ 22:25:17 Player: WeirdFoe Result: Destroyed by G-50 Soldier with Heavy Laser Performance ------------- Evolutions (1) 500 Regions Visited (5) 1000 Robots Destroyed (18) 90 Value Destroyed (501) 501 Prototype IDs (0) 0 Alien Tech Used (0) 0 Bonus (752) 752 TOTAL SCORE: 2843 Bonus ------- Follower Combat Kills 152 Met Imprinter 300 Was Imprinted 300 Cogmind --------- Core Integrity 0/400 Matter 382/400 Energy 34/100 System Corruption 0% Temperature Cool (29) Movement Core (650) Ox12 Location -6/Proximity Caves Parts ------- > --- POWER (1) -------- (None) > --- PROPULSION (3) --- (None) > --- UTILITY (3) ------ Small Storage Unit High-capacity Storage Unit Medium Matter Pod > --- WEAPON (2) ------- (None) > --- INVENTORY (14) --- Improved Heat Sink Cooling System Recoil Stabilizer CR-A16's Pointy Stick Peak State ------------ > --- POWER ------------ Fission Core > --- PROPULSION ------- Spiked Medium Treads Spiked Medium Treads Spiked Medium Treads > --- UTILITY ---------- High-capacity Storage Unit Medium Matter Pod Layered Light Armor Plating > --- WEAPON ----------- Heavy Battle Rifle Makeshift Sword > --- INVENTORY -------- Improved Ion Engine Improved Heat Sink Cooling System Small Storage Unit Recoil Stabilizer Heavy Battle Rifle Shock Bomb Launcher CR-A16's Pointy Stick [Rating: 36] Favorites ----------- Power Improved Ion Engine Engine Improved Ion Engine Power Core Fission Core Propulsion Spiked Medium Treads Treads Spiked Medium Treads Leg Aluminum Leg Wheel Wheel Utility Medium Matter Pod Device Improved Heat Sink Storage Medium Matter Pod Protection Layered Light Armor Plating Weapon CR-A16's Pointy Stick Energy Cannon Beam Cannon Ballistic Gun Heavy Battle Rifle Launcher Shock Bomb Launcher Slashing Weapon Makeshift Sword Piercing Weapon CR-A16's Pointy Stick Build | -11 -10 -9 -9 -7 -6 ------- Run | Scr Mat Mat Min Zio Pro Slots Evolved 2 | . . 2 . . . Power . | . . . . . . Propulsion 1 | . . 1 . . . Utility 1 | . . 1 . . . Weapon . | . . . . . . Parts Attached 43 | 6 8 3 4 14 8 Power 5 | 1 1 . 1 1 1 Engine 4 | 1 1 . 1 . 1 Core 1 | . . . . 1 . Reactor . | . . . . . . Propulsion 9 | 2 2 1 1 3 . Treads 3 | . . . . 3 . Leg 4 | . 2 1 1 . . Wheel 2 | 2 . . . . . Hover . | . . . . . . Flight . | . . . . . . Utility 10 | 1 1 2 1 3 2 Device 3 | . . 1 1 1 . Storage 5 | 1 . 1 . 2 1 Processor . | . . . . . . Hackware . | . . . . . . Protection 2 | . 1 . . . 1 Artifact . | . . . . . . Weapon 19 | 2 4 . 1 7 5 Energy Gun . | . . . . . . Energy Cannon 3 | . 3 . . . . Ballistic Gun 6 | 2 . . . 3 1 Ballistic Cannon . | . . . . . . Launcher 4 | . 1 . 1 1 1 Special Weapon . | . . . . . . Impact Weapon . | . . . . . . Slashing Weapon 3 | . . . . 1 2 Piercing Weapon 3 | . . . . 2 1 Special Melee Weapon . | . . . . . . Unidentified Prototypes . | . . . . . . Parts Lost 18 | . . . 9 . 9 Power 2 | . . . 1 . 1 Propulsion 6 | . . . 3 . 3 Utility 3 | . . . 2 . 1 Weapon 7 | . . . 3 . 4 Highest Loss Streak 9 | . . . 9 . 9 Average Slot Usage (%) 87 | . 97 99 63 70 98 Engine 6 | . 14 11 11 9 . Core 4 | . . . . 1 10 Treads 14 | . . . . 3 32 Leg 8 | . 18 33 20 9 . Device 6 | . . 10 6 11 1 Storage 18 | . 14 11 11 18 22 Protection 5 | . 12 11 3 . 8 Energy Cannon 4 | . 21 22 8 . . Ballistic Gun 6 | . 5 . . 1 13 Launcher 2 | . 1 . 2 6 . Piercing Weapon 6 | . . . . 9 6 Naked Turns . | . . . . . . Heaviest Build 56 | 11 24 25 23 55 56 Greatest Support 84 | 26 26 30 30 84 84 Greatest Overweight (x) 16 | . 1 . . 16 12 Average Overweight (x) . | . . . . 1 . Largest Inventory Capacity 14 | 6 6 6 4 12 14 Average Capacity 8 | 5 6 4 4 7 12 Most Carried 9 | 6 6 5 4 7 9 Average Carried 4 | 3 5 4 1 1 7 Final Capacity 14 | 6 6 4 4 12 14 Final Carried 7 | 4 5 4 . 7 4 Class Distribution -------------------- 55% | Mutant 33% | Derelict-Mutant 11% | Scavenger-Mutant Dominant Class ---------------- Mutant | -10/Materials Mutant | -9/Materials Mutant | -9/Mines Mutant | -7/Zion Derelict-Mutant | -6/Proximity Caves Resources | -11 -10 -9 -9 -7 -6 ----------- Run | Scr Mat Mat Min Zio Pro Matter Collected 708 | 217 109 135 8 139 100 Remotely 135 | . . 135 . . . Salvage Created 598 | . 230 155 59 . 154 Parts 36 | . 14 11 . . 11 Haulers Intercepted . | . . . . . . Recyclers Shooed . | . . . . . . Parts Field Recycled . | . . . . . . Retrieved Matter . | . . . . . . Parts Self-Destructed 21 | . . . . 3 18 Prevented 4 | . . . . . 4 Kills | -11 -10 -9 -9 -7 -6 ------- Run | Scr Mat Mat Min Zio Pro Combat Hostiles Destroyed 22 | . 7 6 6 . 3 Guns 3 | . . . . . 3 Cannons 15 | . 7 6 2 . . AOE 4 | . . . 4 . . Classes Destroyed 6 | . 3 . 1 . 2 Watcher 1 | . 1 . . . . Swarmer 8 | . 3 3 1 . 1 Grunt 7 | . 4 3 . . . Sentry 1 | . . . . . 1 Programmer 1 | . . . . . 1 Assembled 5 | . . . 5 . . Best Kill Streak 5 | . 3 5 5 . 1 Combat Bots Only 5 | . 3 5 5 . 1 Max Kills in Single Turn 4 | . 1 1 4 . 1 Gunslinging . | . . . . . . Exploded 3 | . . . 3 . . Melee . | . . . . . . Uniques/NPCs Destroyed . | . . . . . . Combat | -11 -10 -9 -9 -7 -6 -------- Run | Scr Mat Mat Min Zio Pro Damage Taken 2762 | . 197 91 801 . 1673 Core 453 | . 38 11 190 . 214 Absorbed by Shields . | . . . . . . Core Remaining (%) 92 | 100 84 . . . . Volleys Fired 47 | . 13 8 16 . 10 Largest 2 | . 2 2 2 . 2 Hottest 120 | . 120 120 120 . 66 Shots Fired 81 | . 26 16 22 . 17 Gun 16 | . . . . . 16 Cannon 62 | . 26 16 20 . . Launcher 3 | . . . 2 . 1 Special . | . . . . . . Kinetic 16 | . . . . . 16 Thermal 62 | . 26 16 20 . . Explosive 2 | . . . 2 . . Electromagnetic 1 | . . . . . 1 Robot Hit Streak 7 | . 7 4 5 . 2 Robot Miss Streak 3 | . 1 2 3 . 3 Penetration Max . | . . . . . . Secondary Targets 2 | . . . . . 2 Max Gunslinging Chain 1 | . . . . . 1 Shots Hit Robots 41 | . 18 8 9 . 6 Core Hits 30 | . 10 6 10 . 4 Critical Hits 2 | . . . 1 . 1 Critical Kills 2 | . . . 1 . 1 Critical Parts Destroyed . | . . . . . . Melee Attacks . | . . . . . . Impact . | . . . . . . Slashing . | . . . . . . Piercing . | . . . . . . Sneak Attacks . | . . . . . . Combat Hostiles . | . . . . . . Follow-up Attacks . | . . . . . . Damage Inflicted 972 | . 304 147 336 . 185 Guns 146 | . . . . . 146 Cannons 599 | . 298 142 159 . . Explosions 216 | . . . 177 . 39 Melee . | . . . . . . Ramming 11 | . 6 5 . . . Kinetic 146 | . . . . . 146 Thermal 599 | . 298 142 159 . . Explosive 177 | . . . 177 . . Electromagnetic 39 | . . . . . 39 Impact . | . . . . . . Slashing . | . . . . . . Piercing . | . . . . . . Highest Corruption . | . . . . . . Average Corruption . | . . . . . . Corruption Purged . | . . . . . . Overload Shots . | . . . . . . Overflow Damage 2 | . . . 2 . . Projectiles . | . . . . . . Explosions 2 | . . . 2 . . Melee . | . . . . . . Knockbacks . | . . . . . . Impact . | . . . . . . Kinetic . | . . . . . . Secondary . | . . . . . . Self-Inflicted Damage 67 | . 3 . 64 . . Shots 2 | . . . 2 . . Rammed 2 | . 2 . . . . Targets Rammed 3 | . 2 1 . . . Kicked 1 | . . 1 . . . Crushed . | . . . . . . Highest Temperature 414 | . 414 202 391 . 84 Average Temperature 143 | . 172 106 210 . 25 Received Heat Transfer 417 | . 72 18 120 . 207 Effects 6 | . 3 . 3 . . Shutdowns 1 | . 1 . . . . Energy Bleed 4 | . 2 . 2 . . Interference 1 | . . . 1 . . Siege Activations . | . . . . . . Robots Corrupted . | . . . . . . Combat Hostiles . | . . . . . . Parts Fried . | . . . . . . Impact Corruptions . | . . . . . . Robots Melted . | . . . . . . Combat Hostiles . | . . . . . . Parts Melted 2 | . . 1 1 . . Heat Transferred 1258 | . 629 296 333 . . Parts Sabotaged . | . . . . . . Parts Stolen . | . . . . . . Parts Stripped . | . . . . . . Power Chain Reactions . | . . . . . . Missiles Intercepted . | . . . . . . Alert | -11 -10 -9 -9 -7 -6 ------- Run | Scr Mat Mat Min Zio Pro Peak Influence 277 | . 207 277 128 . . Initial 108 | . . 87 108 . . Average 129 | . 94 209 71 . . Maximum Alert Level 1 | . 1 1 . . . Low Security (%) 64 | 100 86 23 100 . . Level 1 35 | . 13 76 . . . Level 2 . | . . . . . . Level 3 . | . . . . . . Level 4 . | . . . . . . Level 5 . | . . . . . . High Security . | . . . . . . Max Security . | . . . . . . Squads Dispatched 1 | . . 1 . . . Investigation 1 | . . 1 . . . Extermination . | . . . . . . Reinforcement . | . . . . . . Assault . | . . . . . . Garrison . | . . . . . . Intercept . | . . . . . . Construction Impeded . | . . . . . . Haulers Reinforced . | . . . . . . Stealth | -11 -10 -9 -9 -7 -6 --------- Run | Scr Mat Mat Min Zio Pro Distress Signals . | . . . . . . Communications Jammed . | . . . . . . Distress Signals . | . . . . . . Times Spotted 62 | . 10 9 26 . 17 Peak Tracking Total 23 | . 3 5 23 . 8 Tactical Retreats 6 | . 1 1 3 . 1 Traps | -11 -10 -9 -9 -7 -6 ------- Run | Scr Mat Mat Min Zio Pro Traps Triggered 1 | . . 1 . . . Indirectly . | . . . . . . Trap Hack Attempts . | . . . . . . Triggered . | . . . . . . Disarmed . | . . . . . . Reprogrammed . | . . . . . . Reused . | . . . . . . Traps Extracted . | . . . . . . Installed . | . . . . . . Triggered . | . . . . . . Machines | -11 -10 -9 -9 -7 -6 ---------- Run | Scr Mat Mat Min Zio Pro Machines Disabled . | . . . . . . Max in Single Turn . | . . . . . . Machines Sabotaged . | . . . . . . Garrisons Compromised . | . . . . . . Overloaded Fab Kills . | . . . . . . Fab Network Shutdowns . | . . . . . . Hacking | -11 -10 -9 -9 -7 -6 --------- Run | Scr Mat Mat Min Zio Pro Machines Accessed . | . . . . . . Terminals . | . . . . . . Fabricators . | . . . . . . Repair Stations . | . . . . . . Recycling Units . | . . . . . . Scanalyzers . | . . . . . . Garrison Access . | . . . . . . Total Hacks . | . . . . . . Successful . | . . . . . . Failed . | . . . . . . Catastrophic . | . . . . . . Database Lockouts . | . . . . . . Manual . | . . . . . . Terminals . | . . . . . . Fabricators . | . . . . . . Repair Stations . | . . . . . . Recycling Units . | . . . . . . Scanalyzers . | . . . . . . Garrison Access . | . . . . . . Terminal Hacks . | . . . . . . Fabricator Hacks . | . . . . . . Repair Station Hacks . | . . . . . . Recycling Unit Hacks . | . . . . . . Scanalyzer . | . . . . . . Garrison Access Hacks . | . . . . . . Unauthorized Hacks . | . . . . . . Terminals . | . . . . . . Fabricators . | . . . . . . Repair Stations . | . . . . . . Recycling Units . | . . . . . . Scanalyzers . | . . . . . . Garrison Access . | . . . . . . Data Cores Recovered . | . . . . . . Used . | . . . . . . Hacking Detections . | . . . . . . Full Trace Events . | . . . . . . Feedback Events . | . . . . . . Feedback Blocked . | . . . . . . Robot Schematics Acquired . | . . . . . . Robots Built . | . . . . . . Matter . | . . . . . . Time . | . . . . . . Total Robot Build Rating . | . . . . . . Part Schematics Acquired . | . . . . . . Parts Built . | . . . . . . Matter . | . . . . . . Time . | . . . . . . Total Part Build Rating . | . . . . . . Parts Repaired . | . . . . . . Time . | . . . . . . Parts Recycled . | . . . . . . Recycled Matter . | . . . . . . Retrieved Matter . | . . . . . . Retrieved Components . | . . . . . . Parts Scanalyzed . | . . . . . . Part Schematics Acquired . | . . . . . . Parts Damaged . | . . . . . . Bothacking | -11 -10 -9 -9 -7 -6 ------------ Run | Scr Mat Mat Min Zio Pro Used RIF Installer . | . . . . . . Robots Hacked . | . . . . . . Non-combat . | . . . . . . Combat . | . . . . . . Robot Hacks Applied . | . . . . . . Relay Couplers Released . | . . . . . . Robots Rewired . | . . . . . . Allies Hacked . | . . . . . . Hacks Repelled . | . . . . . . Allies | -11 -10 -9 -9 -7 -6 -------- Run | Scr Mat Mat Min Zio Pro Total Allies 4 | . . . . 4 . Largest Group 4 | . . . . 4 4 Highest-Rated Group 153 | . . . . 153 153 Highest-Rated Ally 41 | . . . . 41 41 Total Orders . | . . . . . . Ally Attacks 30 | . . . . . 30 Total Damage 746 | . . . . . 746 Kills 6 | . . . . . 6 Allies Corrupted 1 | . . . . . 1 Allies Melted . | . . . . . . Intel | -11 -10 -9 -9 -7 -6 ------- Run | Scr Mat Mat Min Zio Pro Robot Analysis Total . | . . . . . . Derelict Logs Recovered 1 | . . . . . 1 Drone Launches . | . . . . . . Drone Recoveries . | . . . . . . Exploration | -11 -10 -9 -9 -7 -6 ------------- Run | Scr Mat Mat Min Zio Pro Turns Passed 3049 | 48 275 263 90 1134 1239 Spaces Moved 1670 | 37 140 121 41 603 728 Core 8 | 2 . . . 5 1 Treads 787 | . . . . 60 727 Legs 782 | . 82 121 41 538 . Wheels 93 | 35 58 . . . . Hover . | . . . . . . Flight . | . . . . . . Fastest Speed 50 | 50 90 120 120 120 160 Average Speed 159 | 87 125 120 120 181 160 Slowest Speed 850 | 90 150 120 120 850 650 Overloaded Moves . | . . . . . . Propulsion Burnouts . | . . . . . . Robots Hopped . | . . . . . . Cave-ins Triggered . | . . . . . . Exploration Rate (%) 38 | 3 28 12 22 77 86 Regions Visited 5 Branch Regions 3 Pre-discovered Areas 1 | . . . . 1 . Known Exits Taken . | . . . . . . Unknown Exits Taken 5 | 1 1 1 1 1 . Scrap Searched 5 | . . . . 3 2 Spaces Dug . | . . . . . . Terrain Destroyed 16 | . . . 16 . . Melee . | . . . . . . Projectile . | . . . . . . AOE 16 | . . . 16 . . Terrain Rammed . | . . . . . . Walls Destroyed . | . . . . . . Machines Disabled . | . . . . . . Actions | -11 -10 -9 -9 -7 -6 --------- Run | Scr Mat Mat Min Zio Pro Total 1983 | 52 216 223 60 647 785 Wait 157 | . 32 85 . 4 36 Move 1665 | 36 139 120 40 602 728 Hop . | . . . . . . Pick Up 46 | 10 12 4 . 18 2 Fast Attach . | . . . . . . Attach 31 | 6 4 3 4 9 5 Detach 3 | . . . . 3 . Swap 12 | . 4 . . 5 3 Drop 19 | . 10 2 . 6 1 Fire 47 | . 13 8 16 . 10 Melee . | . . . . . . Ram . | . . . . . . Kick 3 | . 2 1 . . . Crush . | . . . . . . Escape Stasis . | . . . . . . Rewire . | . . . . . . Trap . | . . . . . . Miscellaneous . | . . . . . . Route ------- -11/Scrapyard -10/Materials -9/Materials -9/Mines -7/Zion -6/Proximity Caves (discovered 1 exit: Fac) History --------- Turn | Location | Event 2 | -11/Scrapyard | Met Revision 17 23 | -11/Scrapyard | Discovered new exit (range 14) 49 | -11/Scrapyard | Entered Materials 298 | -10/Materials | Discovered new exit (range 6) 324 | -10/Materials | Entered another Materials area 324 | -9/Materials | Evolved 2 slots: Propulsion x1, Utility x1 367 | -9/Materials | Build established: Mutant 573 | -9/Materials | Discovered new exit (range 12) 587 | -9/Materials | Entered Mines 588 | -9/Mines | Assembled infested the area 593 | -9/Mines | Assisted by a Guerilla fighting off Assembled 669 | -9/Mines | A Derelict revealed a hidden shortcut to a safe place 670 | -9/Mines | Core integrity fell below 50% 673 | -9/Mines | Lost 9 parts (1p3n2u3w) 677 | -9/Mines | Entered Zion 708 | -7/Zion | Found CR-A16's Pointy Stick 814 | -7/Zion | Visited the Megawrench Repair Shop 814 | -7/Zion | Megawrench repaired 3 parts 874 | -7/Zion | Learned Factory emergency access door positions 1031 | -7/Zion | Learned Factory fabricator intel 1045 | -7/Zion | Learned location of Quarantine (-2) 1190 | -7/Zion | Imprinted 1192 | -7/Zion | Declared Zion's savior 1781 | -7/Zion | Discovered new exit (range 16) 1811 | -7/Zion | Entered Proximity Caves 1811 | -6/Proximity Caves | Accompanied by 4 allies 1920 | -6/Proximity Caves | Attracted the attention of an 0b10 checkpoint 2000 | -6/Proximity Caves | Build established: Scavenger-Mutant 2287 | -6/Proximity Caves | Identified exit to Factory 2352 | -6/Proximity Caves | Build established: Derelict-Mutant 2969 | -6/Proximity Caves | Spotted B-75 Beast 2977 | -6/Proximity Caves | Attracted the attention of an 0b10 outpost 3021 | -6/Proximity Caves | Core integrity fell below 20% 3050 | -6/Proximity Caves | Destroyed by G-50 Soldier with Heavy Laser Last Messages --------------- 02883_ Switching to secondary target: S-27 Virus. 02889_ S-27 Virus destroyed. 02892_ Acquired 24 matter. 02893_ VTOL Module fries itself beyond repair. 02977_ Y-64 Sentinel: "DETECTED UNIDENTIFIED DERELICT." 02977_ Y-64 Sentinel suffers critical hit. 02977_ Y-64 Sentinel destroyed. 02977_ Switching to secondary target: L-41 Fighter. 02982_ U3-RMC(M) suffers critical hit. 02991_ U3-RMC(M) destroyed. 03007_ Hvy. Battle Rifle destroyed. 03010_ Fission Core destroyed. 03013_ Hvy. Battle Rifle destroyed. 03016_ Lyr. Light Armor Plating destroyed. 03018_ Imp. Ion Engine severed. 03022_ Spk. Medium Treads destroyed. 03027_ S-27 Virus destroyed. 03045_ Spk. Medium Treads destroyed. 03046_ Mak. Sword destroyed. 03048_ Shock Bomb Launcher destroyed. Map ----- +----------------------------------------------------+ | ?????????????????????????????????????????????????? | | ?????????????????????????????????????????????????? | | ?????????????????????????????????????????????????? | | ?????????????????????????????????????????????????? | | ?????????????????????????????????????????????????? | | ?????????????????????????????????????????????????? | | ?????????????????????????????????????????????????? | | ?????????????????????????????????????????????????? | | ?????????????????????????????????????????????????? | | ?????????????????????????????????????????????????? | | ?????????????????????????????????????????????????? | | ?????????????????????????????????????????????????? | | ????#######??????????????????????????????????????? | | ????# #??????????????????????????????????????? | | ????# #??????????????????????????????????????? | | ???## #??????????????????????????????????????? | | ?### #??????????????????????????????????????? | | ## ###?????????####???????????????????????? | | # ## ########## ##??????????????????????? | | "" ## ##?????????????????????? | | #?# ###???????????????????? | | #?### #####s #???????????????????? | | ###### ##???# #???????????????????? | | * ### #????## l####???????????????????? | | [% "#?????## ##?????????????????????? | | ##??????#@ #?????????????????????? | | ### #?????? #???????????????????? | | ##?# #### ##???? #??????????????????? | | ??# #??# ###????# #?????????????????? | | ??# #??# #??????# ????????????????? | | ??# #??# #??????# ??????????????? | | ??# #??# #?????? #????????????? | | ??# ###??# #????? #????????????? | | ??# ????? #????# #????????????? | | ??# ????? #???? ##????????????? | | ??##????? ??? ## #?????????????? | | ?????????## ?? ## #? ?????????????? | | ??????????## ?? ggg ##? #????????????????? | | ????????????# ???? g#???? #????????????????? | | ###??????????#??????? ####???????????????????????? | | ##?????????????????????????????????????????????? | | ####### #?????????????????????????????????????? | | ??????????????????????????????????????? | | ????????????????????????????